bitfinex/quotes_BTCUSD_20240721
["timestamp","ask_amount","ask_price","bid_price","bid_amount"]
[1721571050946,0.00636,66997.0,66996.0,1.50529471]
[1721571051208,0.00636,66997.0,66996.0,1.40882305]
[1721571051689,0.00636,66997.0,66996.0,1.41282356]
[1721571051916,0.00636,66997.0,66996.0,1.42382356]
[1721571052167,0.00636,66997.0,66996.0,1.46623515]
[1721571052848,0.00636,66997.0,66996.0,1.45523515]
[1721571053059,0.00636,66997.0,66996.0,1.50523515]
[1721571053287,0.00636,66997.0,66996.0,1.80376015]
[1721571053503,0.1381,67006.0,67005.0,0.746212]
[1721571053714,0.1381,67006.0,67005.0,1.02452776]
[1721571053931,0.1381,67006.0,67005.0,1.36542435]
[1721571054153,0.059787,67024.0,67005.0,1.36542435]
[1721571054154,0.1381,67013.0,67012.0,0.447681]
[1721571054363,0.059787,67024.0,67023.0,0.447607]
[1721571054623,0.059787,67024.0,67023.0,0.60198874]
[1721571054847,0.121687,67024.0,67023.0,0.15438174]
[1721571055071,0.121687,67024.0,67023.0,0.19966151]
[1721571055297,0.14014304,67024.0,67023.0,1.0380851]
[1721571055514,0.07824304,67024.0,67023.0,1.16496948]
[1721571055739,0.059787,67024.0,67023.0,1.6681909]
[1721571055965,0.059787,67024.0,67023.0,1.47604597]
[1721571056218,0.059787,67024.0,67023.0,1.26824597]
[1721571056459,0.015277,67026.0,67025.0,1.00379]
[1721571056701,0.015277,67026.0,67025.0,1.46793967]
[1721571056953,9e-05,67034.0,67033.0,1.0037]
[1721571057227,9e-05,67034.0,67033.0,1.76620967]
[1721571057444,9e-05,67034.0,67033.0,1.18994188]
[1721571057701,9e-05,67034.0,67033.0,0.42564107]
[1721571057933,9e-05,67034.0,67033.0,0.37351715]
[1721571058139,9e-05,67034.0,67033.0,0.43010306]
[1721571058349,0.01877093,67034.0,67033.0,0.38010306]
[1721571058559,0.01877093,67034.0,67033.0,0.39410306]
[1721571058560,9e-05,67034.0,67033.0,0.39410306]
[1721571058777,9e-05,67034.0,67033.0,0.54328306]
[1721571058998,9e-05,67034.0,67033.0,0.87764306]
[1721571059220,9e-05,67034.0,67033.0,1.19700306]
[1721571059649,9e-05,67034.0,67033.0,1.19000306]
[1721571059863,9e-05,67034.0,67033.0,1.22600306]
[1721571060086,9e-05,67034.0,67033.0,1.23400306]
[1721571060305,9e-05,67034.0,67033.0,1.53236306]
[1721571060521,9e-05,67034.0,67033.0,1.48236665]
[1721571060739,9e-05,67034.0,67033.0,1.27813259]
[1721571060960,9e-05,67034.0,67033.0,1.57649259]
[1721571061174,9e-05,67034.0,67033.0,1.64536665]
[1721571061385,9e-05,67034.0,67033.0,1.8311555]
[1721571061623,9e-05,67034.0,67033.0,1.88066665]
[1721571062309,9e-05,67034.0,67033.0,1.57530665]
[1721571062534,9e-05,67034.0,67033.0,1.85966665]
[1721571062753,9e-05,67034.0,67033.0,1.73580742]
[1721571062963,9e-05,67034.0,67033.0,1.88266244]
[1721571063401,0.062,67050.0,67046.0,0.149149]
[1721571063402,0.06164822,67050.0,67046.0,0.149149]
[1721571063687,0.06164822,67050.0,67047.0,0.27823676]
[1721571063904,0.06164822,67050.0,67048.0,0.12385502]
[1721571064123,0.06164822,67050.0,67049.0,0.27823676]
[1721571064544,0.06164822,67050.0,67049.0,0.30606044]
[1721571064967,0.06164822,67050.0,67049.0,0.27823676]
[1721571065418,0.06164822,67050.0,67049.0,0.15438174]
[1721571065630,0.06164822,67050.0,67049.0,0.27824222]
[1721571065841,0.06164822,67050.0,67049.0,0.2782423]
[1721571068865,0.06164822,67050.0,67049.0,0.27924272]
[1721571069072,0.06164822,67050.0,67049.0,0.32452249]
[1721571069289,0.06164822,67050.0,67049.0,0.32552249]
[1721571069498,0.06164822,67050.0,67049.0,0.77295549]
[1721571069705,0.06164822,67050.0,67049.0,0.77195549]
[1721571069977,0.0613,67055.0,67053.0,0.298271]
[1721571070186,0.0613,67055.0,67049.0,0.5113044]
[1721571070187,0.0613,67055.0,67054.0,0.12386098]
[1721571070630,0.16271581,67055.0,67054.0,0.12386098]
[1721571071293,0.18571581,67055.0,67054.0,0.12386098]
[1721571072211,0.18571581,67055.0,67054.0,0.13624708]
[1721571072429,0.16271581,67055.0,67054.0,0.29062882]
[1721571072645,0.16271581,67055.0,67054.0,0.92380798]
[1721571072646,0.01881581,67055.0,67054.0,0.92380798]
[1721571072853,0.0613,67061.0,67060.0,0.44736]
[1721571073078,0.0613,67061.0,67060.0,0.46402188]
[1721571073311,0.0613,67061.0,67060.0,0.61314188]
[1721571073525,0.0613,67061.0,67060.0,0.91138188]
[1721571073763,0.0613,67061.0,67060.0,0.95880755]
[1721571073985,0.0613,67061.0,67060.0,1.25704755]
[1721571074194,0.0613,67061.0,67060.0,1.25804755]
[1721571074407,0.00836,67064.0,67063.0,0.745567]
[1721571074624,0.00836,67064.0,67063.0,1.34039034]
[1721571075110,0.00836,67064.0,67063.0,1.3403216]
[1721571077518,0.00836,67064.0,67063.0,1.3513216]
[1721571078372,0.00836,67064.0,67063.0,1.9977756]
[1721571078591,1e-08,67064.0,67063.0,2.1477756]
[1721571078802,0.0607,67088.0,67077.0,0.05]
[1721571079019,0.0607,67088.0,67087.0,0.14906]
[1721571079234,0.015277,67094.0,67087.0,0.14906]
[1721571079235,0.015277,67094.0,67091.0,0.149051]
[1721571079444,0.015277,67094.0,67091.0,0.7253633]
[1721571079678,0.015277,67094.0,67091.0,0.51808127]
[1721571079885,0.015277,67094.0,67091.0,0.4272613]
[1721571080105,0.015277,67094.0,67091.0,0.5159216]
[1721571080343,0.15086,67092.0,67091.0,0.12382856]
[1721571080767,0.06906,67092.0,67091.0,0.4272613]
[1721571081006,0.00836,67092.0,67091.0,0.8180508]
[1721571081216,0.00836,67092.0,67091.0,1.64993225]
[1721571081426,0.00836,67092.0,67091.0,1.30283025]
[1721571081682,0.00797181,67092.0,67091.0,1.60093225]
[1721571081937,0.00797181,67092.0,67091.0,1.00372825]
[1721571082386,0.00797181,67092.0,67091.0,1.30283025]
[1721571082618,0.00797181,67092.0,67091.0,1.71213225]
[1721571082852,0.00017993,67116.0,67115.0,0.794987]
[1721571083063,0.00017993,67116.0,67115.0,1.33963612]
[1721571083276,0.00017993,67116.0,67115.0,1.25883612]
[1721571083500,0.00017993,67116.0,67115.0,1.33963612]
[1721571083706,0.00017993,67116.0,67115.0,1.42816374]
[1721571083974,0.00017993,67116.0,67115.0,0.96185512]
[1721571084159,0.15087993,67116.0,67115.0,0.12370499]
[1721571084418,0.15087993,67116.0,67096.0,0.0612]
[1721571084419,0.06087993,67116.0,67099.0,0.05197472]
[1721571084663,0.06087993,67116.0,67101.0,0.15438174]
[1721571084664,0.07717479,67115.0,67101.0,0.15438174]
[1721571084893,0.07717479,67115.0,67102.0,0.12377633]
[1721571085151,0.07717479,67105.0,67103.0,0.27815807]
[1721571085387,0.07717479,67105.0,67104.0,0.12377633]
[1721571085625,0.07717479,67105.0,67104.0,0.27815807]
[1721571085867,0.32947479,67105.0,67104.0,0.12377633]
[1721571086108,0.32947479,67105.0,67088.0,0.05197472]
[1721571086109,0.25539219,67105.0,67088.0,0.05197472]
[1721571086350,0.023,67104.0,67089.0,0.28096926]
[1721571086652,0.023,67104.0,67089.0,0.15717574]
[1721571086871,0.01587273,67103.0,67092.0,0.05201993]
[1721571087139,0.023,67102.0,67093.0,0.51866848]
[1721571087439,0.01587273,67103.0,67094.0,0.36149274]
[1721571087650,0.1393,67105.0,67095.0,0.57053533]
[1721571087894,0.1393,67105.0,67096.0,0.28115114]
[1721571088127,0.18552479,67123.0,67100.0,0.15438174]
[1721571088128,0.0774,67113.0,67100.0,0.15438174]
[1721571088374,0.0774,67113.0,67101.0,0.18393212]
[1721571088375,0.023,67112.0,67101.0,0.18393212]
[1721571088615,0.03892442,67112.0,67102.0,0.27817086]
[1721571088855,0.113,67112.0,67103.0,0.1618082]
[1721571089141,0.113,67112.0,67094.0,0.06]
[1721571089142,0.07717479,67108.0,67104.0,0.27817086]
[1721571089375,0.023,67107.0,67105.0,0.12378912]
[1721571089609,0.113,67107.0,67106.0,0.12378912]
[1721571089846,0.03344566,67107.0,67106.0,0.15160621]
[1721571090085,0.0774,67113.0,67106.0,0.30598795]
[1721571090342,0.1674,67113.0,67107.0,0.27817086]
[1721571090563,0.00541348,67112.0,67108.0,0.12378912]
[1721571090789,0.09541348,67112.0,67109.0,0.27817086]
[1721571090994,0.07717479,67110.0,67109.0,0.15438174]
[1721571091223,0.19017479,67110.0,67109.0,0.15438174]
[1721571091443,0.19559834,67110.0,67093.0,0.05201993]
[1721571091658,0.149016,67107.0,67094.0,0.28096176]
[1721571091907,0.15457479,67096.0,67095.0,0.12378602]
[1721571092121,0.15457479,67096.0,67080.0,0.05201993]
[1721571092122,0.14906,67087.0,67080.0,0.05201993]
[1721571092347,0.09,67087.0,67080.0,0.15178127]
[1721571092590,0.023,67086.0,67080.0,0.15178127]
[1721571092809,0.11830328,67086.0,67066.0,0.46304871]
[1721571093057,0.11830328,67086.0,67067.0,0.21923047]
[1721571093058,0.26736528,67086.0,67067.0,0.21923047]
[1721571093276,0.11830328,67086.0,67067.0,0.21923047]
[1721571093499,0.07717479,67079.0,67067.0,0.1540556]
[1721571093725,0.07717479,67079.0,67067.0,0.1512616]
[1721571093726,0.023,67078.0,67067.0,0.1512616]
[1721571093958,0.11839421,67078.0,67068.0,0.01792016]
[1721571094207,0.02839421,67078.0,67069.0,0.15147851]
[1721571094420,0.113,67078.0,67070.0,0.002794]
[1721571094635,0.113,67078.0,67071.0,0.15157477]
[1721571094636,0.00532296,67077.0,67071.0,0.15157477]
[1721571094846,0.023,67076.0,67071.0,0.15157477]
[1721571095077,0.015746,67075.0,67071.0,0.15157477]
[1721571095279,0.105746,67075.0,67071.0,0.15157477]
[1721571095520,0.023,67074.0,67071.0,0.15157477]
[1721571095728,0.113,67074.0,67071.0,0.15157477]
[1721571095944,0.00530427,67073.0,67071.0,0.15157477]
[1721571096152,0.09530427,67073.0,67071.0,0.15157477]
[1721571096624,0.09530427,67073.0,67061.0,0.05207924]
[1721571096851,0.023,67072.0,67062.0,0.15717574]
[1721571097103,0.06808817,67071.0,67062.0,0.15438174]
[1721571097331,0.15808817,67071.0,67062.0,0.15438174]
[1721571097564,0.023,67070.0,67062.0,0.15438174]
[1721571097811,0.113,67070.0,67062.0,0.16981991]
[1721571098021,0.00530556,67069.0,67062.0,0.16981991]
[1721571098227,0.023,67068.0,67062.0,0.16981991]
[1721571098443,0.00529532,67067.0,67062.0,0.16981991]
[1721571098654,0.023,67066.0,67062.0,0.15438174]
[1721571098866,0.00538257,67065.0,67062.0,0.15438174]
[1721571099073,0.023,67064.0,67062.0,0.15438174]
[1721571099279,0.00536848,67063.0,67062.0,0.15438174]
[1721571099488,0.11836848,67063.0,67062.0,0.15438174]
[1721571099904,0.11836848,67063.0,67062.0,0.27823356]
[1721571100125,0.02836848,67063.0,67062.0,0.30605692]
[1721571100327,0.023,67063.0,67062.0,0.27823356]
[1721571100537,0.113,67063.0,67062.0,0.27823356]
[1721571100972,0.039382,67063.0,67062.0,0.27823356]
[1721571101472,0.023,67063.0,67062.0,0.27823356]
[1721571101679,0.113,67063.0,67062.0,0.27822977]
[1721571101951,0.01638433,67063.0,67062.0,0.27822977]
[1721571102163,0.01638433,67063.0,67062.0,0.30605275]
[1721571102377,0.0628,67071.0,67062.0,0.30605275]
[1721571102590,0.0628,67071.0,67063.0,0.12664203]
[1721571102591,0.023,67070.0,67063.0,0.12664203]
[1721571102822,0.1293472,67070.0,67064.0,0.27822977]
[1721571103033,0.1293472,67070.0,67068.0,0.20438174]
[1721571103034,0.0163472,67070.0,67068.0,0.20438174]
[1721571103242,0.01103272,67070.0,67069.0,0.12664203]
[1721571103449,0.07717479,67081.0,67069.0,0.12664203]
[1721571103450,0.07717479,67081.0,67069.0,0.27822977]
[1721571103660,0.07717479,67081.0,67064.0,0.02782298]
[1721571103661,0.01638074,67080.0,67070.0,0.28102377]
[1721571103876,0.10638074,67080.0,67071.0,0.12384803]
[1721571104103,0.10638074,67080.0,67072.0,0.28102377]
[1721571104326,0.10638074,67080.0,67073.0,0.12384803]
[1721571104568,0.10638074,67080.0,67074.0,0.15438174]
[1721571104779,0.10638074,67080.0,67074.0,0.16981991]
[1721571104988,0.07717479,67079.0,67074.0,0.15438174]
[1721571105201,0.16717479,67079.0,67074.0,0.15438174]
[1721571105412,0.023,67078.0,67074.0,0.15438174]
[1721571105621,0.12938074,67078.0,67074.0,0.15438174]
[1721571106053,0.03938074,67078.0,67075.0,0.00298139]
[1721571106263,0.03938074,67078.0,67076.0,0.15717574]
[1721571106477,0.0801,67090.0,67076.0,0.15438174]
[1721571106687,0.01638993,67089.0,67077.0,0.14704822]
[1721571106897,0.18356472,67089.0,67078.0,0.27819779]
[1721571107156,0.18356472,67089.0,67079.0,0.12661005]
[1721571107362,0.18356472,67089.0,67080.0,0.27819279]
[1721571107580,0.18356472,67089.0,67080.0,0.15438174]
[1721571107806,0.18356472,67089.0,67081.0,0.12380901]
[1721571108017,0.023,67088.0,67082.0,0.27819075]
[1721571108226,0.113,67088.0,67082.0,0.15438174]
[1721571108903,0.00539483,67087.0,67082.0,0.15438174]
[1721571109119,0.023,67086.0,67073.0,0.002794]
[1721571109325,0.141665,67086.0,67074.0,0.27819592]
[1721571109541,0.00538742,67085.0,67075.0,0.12660818]
[1721571109784,0.023,67084.0,67076.0,0.27819592]
[1721571109994,0.023,67084.0,67077.0,0.12381418]
[1721571109995,0.113,67084.0,67077.0,0.12381418]
[1721571110206,0.00539041,67083.0,67078.0,0.30880951]
[1721571110435,0.09,67083.0,67078.0,0.15438174]
[1721571110643,0.01548499,67082.0,67079.0,0.01543817]
[1721571110857,0.10144218,67082.0,67080.0,0.15438174]
[1721571111064,0.09,67082.0,67081.0,0.002794]
[1721571111272,0.09,67082.0,67081.0,0.15438174]
[1721571112145,0.0801,67090.0,67081.0,0.18472821]
[1721571112367,0.0801,67090.0,67083.0,0.149067]
[1721571112368,0.09,67090.0,67083.0,0.149067]
[1721571112579,0.09,67090.0,67084.0,0.20272876]
[1721571112580,0.00405264,67089.0,67084.0,0.20272876]
[1721571112788,0.00405264,67089.0,67088.0,0.149057]
[1721571112789,0.09405264,67089.0,67088.0,0.149057]
[1721571113010,0.09405264,67089.0,67088.0,0.30343874]
[1721571113011,0.00405264,67089.0,67088.0,0.30343874]
[1721571113215,0.00405264,67089.0,67088.0,0.76552563]
[1721571113426,0.00405264,67089.0,67088.0,0.46741063]
[1721571113687,0.0628,67105.0,67088.0,0.31835363]
[1721571113909,0.0628,67105.0,67089.0,0.34965704]
[1721571113910,0.00083,67094.0,67089.0,0.34965704]
[1721571114119,0.00083,67094.0,67090.0,0.12379125]
[1721571114335,0.00083,67094.0,67091.0,0.15438174]
[1721571114546,0.09083,67094.0,67091.0,0.15438174]
[1721571114754,0.09083,67094.0,67091.0,0.30343174]
[1721571115000,0.09083,67094.0,67091.0,0.15438174]
[1721571115208,0.00083,67094.0,67092.0,0.06219059]
[1721571115414,0.00083,67094.0,67089.0,0.41958976]
[1721571115415,0.00083,67094.0,67093.0,0.15438174]
[1721571115636,0.09083,67094.0,67093.0,0.15438174]
[1721571116091,0.0949079,67094.0,67093.0,0.15438174]
[1721571116759,0.0049079,67094.0,67093.0,0.16981991]
[1721571117186,0.00083,67094.0,67093.0,0.16981991]
[1721571117626,0.00083,67094.0,67093.0,0.31886591]
[1721571117843,0.00083,67094.0,67093.0,0.16981991]
[1721571118683,0.00083,67094.0,67093.0,0.15438174]
[1721571118895,0.09083,67094.0,67093.0,0.15438174]
[1721571119150,0.0114827,67094.0,67093.0,0.15438174]
[1721571119620,0.00083,67094.0,67093.0,0.15438174]
[1721571119866,0.00083,67094.0,67093.0,0.60152074]
[1721571120113,0.00083,67094.0,67093.0,0.69648321]
[1721571120353,0.09083,67094.0,67093.0,0.24934421]
[1721571120591,0.09083,67094.0,67093.0,0.15438174]
[1721571121059,0.10148292,67094.0,67093.0,0.15438174]
[1721571121588,0.09491441,67094.0,67093.0,0.15438174]
[1721571121823,0.09083,67094.0,67093.0,0.15438174]
[1721571122070,0.01148292,67094.0,67093.0,0.15438174]
[1721571122322,0.00083,67094.0,67093.0,0.15438174]
[1721571122564,0.00083,67094.0,67093.0,0.27816591]
[1721571122795,0.00083,67094.0,67093.0,0.15438174]
[1721571123525,0.09083,67094.0,67093.0,0.21453531]
[1721571123767,0.09083,67094.0,67093.0,0.15438174]
[1721571123998,0.10150424,67094.0,67093.0,0.15438174]
[1721571129817,0.02650424,67094.0,67093.0,0.15438174]
[1721571130245,0.01583,67094.0,67093.0,0.16981991]
[1721571131793,0.01583,67094.0,67093.0,0.15438174]
[1721571132496,0.01583,67094.0,67093.0,0.27817448]
[1721571134605,0.01583,67094.0,67093.0,0.15438174]
[1721571134861,0.01583,67094.0,67093.0,0.27817444]
[1721571137787,0.01583,67094.0,67093.0,0.27817409]
[1721571138207,0.01583,67094.0,67093.0,0.3059915]
[1721571138416,0.01583,67094.0,67093.0,0.27817409]
[1721571138863,0.01583,67094.0,67093.0,0.12379235]
[1721571138864,0.09643,67094.0,67093.0,0.12379235]
[1721571139273,0.17130836,67094.0,67082.0,0.002794]
[1721571139486,0.17130836,67094.0,67083.0,0.34497768]
[1721571139701,0.07717479,67092.0,67084.0,0.12659294]
[1721571139918,0.07717479,67085.0,67084.0,0.002794]
[1721571140139,0.09300479,67085.0,67084.0,0.1238085]
[1721571140558,0.10859999,67085.0,67084.0,0.1238085]
[1721571140840,0.10859999,67085.0,67084.0,0.12381106]
[1721571141274,0.17279999,67085.0,67084.0,0.12381106]
[1721571141492,0.17279999,67085.0,67075.0,0.000913]
[1721571141699,0.0806,67084.0,67076.0,0.2782039]
[1721571141906,0.09643,67084.0,67077.0,0.12382216]
[1721571142115,0.09643,67084.0,67078.0,0.12382216]
[1721571142324,0.09643,67084.0,67075.0,0.000913]
[1721571142554,0.09643,67084.0,67076.0,0.27820655]
[1721571142774,0.00407079,67083.0,67077.0,0.12382481]
[1721571142988,0.023,67082.0,67075.0,0.000913]
[1721571143206,0.07717479,67078.0,67075.0,0.000913]
[1721571143430,0.09300479,67078.0,67075.0,0.000913]
[1721571143644,0.0642,67076.0,67075.0,0.000913]
[1721571143859,0.10303,67076.0,67075.0,0.000913]
[1721571144080,0.10708896,67076.0,67075.0,0.000913]
[1721571145129,0.00405896,67076.0,67075.0,0.000913]
[1721571145565,0.0642,67081.0,67075.0,0.000913]
[1721571145781,0.0106224,67076.0,67075.0,0.000913]
[1721571145995,0.023,67080.0,67075.0,0.000913]
[1721571146225,0.00655888,67076.0,67075.0,0.000913]
[1721571146428,0.00405393,67079.0,67075.0,0.000913]
[1721571146643,0.02405393,67079.0,67075.0,0.000913]
[1721571147104,0.02405393,67079.0,67066.0,0.147813]
[1721571147322,0.07717479,67076.0,67067.0,0.2782099]
[1721571147535,0.002794,67075.0,67068.0,0.12382816]
[1721571147752,0.00652154,67074.0,67069.0,0.2782099]
[1721571147949,0.002794,67073.0,67070.0,0.12382816]
[1721571148193,0.022794,67073.0,67071.0,0.2782099]
[1721571148428,0.02,67073.0,67071.0,0.15438174]
[1721571148646,0.002794,67072.0,67068.0,0.04248362]
[1721571148920,0.00932062,67072.0,67069.0,0.27820992]
[1721571149131,0.00652662,67072.0,67070.0,0.12382818]
[1721571149352,0.023,67080.0,67070.0,0.19433738]
[1721571149561,0.002794,67079.0,67070.0,0.19433738]
[1721571149776,0.02931414,67079.0,67070.0,0.19433738]
[1721571149984,0.023,67078.0,67070.0,0.19433738]
[1721571150166,0.002794,67077.0,67070.0,0.19433738]
[1721571150416,0.022794,67077.0,67071.0,0.02071823]
[1721571150630,0.00652323,67076.0,67071.0,0.17509997]
[1721571150859,0.002794,67075.0,67071.0,0.15438174]
[1721571151069,0.022794,67075.0,67071.0,0.15438174]
[1721571151276,0.02,67075.0,67071.0,0.15438174]
[1721571151487,0.0642,67081.0,67071.0,0.18473031]
[1721571151701,0.0642,67081.0,67075.0,0.149086]
[1721571151702,0.002794,67080.0,67075.0,0.149086]
[1721571151926,0.002794,67080.0,67076.0,0.15438174]
[1721571151927,0.01337654,67080.0,67076.0,0.15438174]
[1721571152168,0.01337654,67080.0,67076.0,0.30346574]
[1721571152409,0.0806,67084.0,67076.0,0.30346474]
[1721571152650,0.002794,67083.0,67077.0,0.34130982]
[1721571152907,0.022794,67083.0,67078.0,0.15438174]
[1721571153147,0.002794,67083.0,67082.0,0.149071]
[1721571153374,0.11061461,67091.0,67082.0,0.149071]
[1721571153375,0.002794,67084.0,67082.0,0.15438174]
[1721571153593,0.066,67091.0,67083.0,0.15438174]
[1721571153826,0.0355952,67085.0,67083.0,0.15438174]
[1721571155798,0.0355952,67085.0,67083.0,0.18472781]
[1721571156050,0.0355952,67085.0,67083.0,0.15438174]
[1721571158356,0.0355952,67085.0,67083.0,0.30344974]
[1721571158604,0.0355952,67085.0,67084.0,0.1238025]
[1721571158831,0.0355952,67085.0,67083.0,0.15438174]
[1721571159057,0.0355952,67085.0,67083.0,0.19963521]
[1721571159282,0.0355952,67085.0,67084.0,0.12380282]
[1721571159508,0.0155952,67085.0,67084.0,0.42725056]
[1721571159992,0.0155952,67085.0,67084.0,1.02351656]
[1721571160208,0.0155952,67085.0,67084.0,0.80368356]
[1721571160425,0.0155952,67085.0,67084.0,1.18218492]
[1721571161485,0.0155952,67085.0,67084.0,1.24518492]
[1721571161907,0.0155952,67085.0,67084.0,1.24517647]
[1721571162120,0.0155952,67085.0,67084.0,1.16480811]
[1721571163186,0.0155952,67085.0,67084.0,0.86667511]
[1721571163400,0.0155952,67085.0,67084.0,1.16480811]
[1721571163401,0.0355952,67085.0,67084.0,1.16480811]
[1721571164077,0.0355952,67085.0,67084.0,0.86667511]
[1721571164298,0.0355952,67085.0,67084.0,0.35647611]
[1721571164515,0.0155952,67085.0,67084.0,0.12379437]
[1721571164729,0.0155952,67085.0,67073.0,0.149089]
[1721571164730,0.11276999,67085.0,67073.0,0.149089]
[1721571164945,0.11276999,67085.0,67074.0,0.27818903]
[1721571164946,0.07717479,67078.0,67074.0,0.27818903]
[1721571165158,0.09717479,67078.0,67075.0,0.12380729]
[1721571165387,0.01060465,67077.0,67076.0,0.27818903]
[1721571165597,0.0462002,67077.0,67076.0,0.27818903]
[1721571165811,0.03559555,67077.0,67076.0,0.27818903]
[1721571167853,0.03559555,67077.0,67076.0,0.15438174]
[1721571168074,0.03559555,67077.0,67076.0,0.27819542]
[1721571168546,0.01559555,67077.0,67076.0,0.44731595]
[1721571168757,0.01559555,67077.0,67076.0,0.89456895]
[1721571169001,0.01559555,67077.0,67076.0,1.19273795]
[1721571169812,0.01559555,67077.0,67076.0,1.16491841]
[1721571171017,0.01559555,67077.0,67076.0,1.16490549]
[1721571172423,0.01559555,67077.0,67076.0,1.46307449]
[1721571173119,0.01559555,67077.0,67076.0,1.51307449]
[1721571173338,0.01559555,67077.0,67076.0,1.75085078]
[1721571173555,0.01559555,67077.0,67076.0,1.87595115]
[1721571173767,0.01559555,67077.0,67076.0,2.22412015]
[1721571174003,0.01559555,67077.0,67076.0,1.86254211]
[1721571174213,0.01559555,67077.0,67076.0,2.17202586]
[1721571175048,0.00087,67094.0,67093.0,0.149046]
[1721571175263,0.00087,67094.0,67093.0,0.27817524]
[1721571175475,0.04529651,67094.0,67093.0,0.30342774]
[1721571175677,0.0364631,67094.0,67093.0,0.15438174]
[1721571176744,0.0364631,67094.0,67093.0,0.19963101]
[1721571177370,0.0364631,67094.0,67093.0,0.15438174]
[1721571177571,0.0364631,67094.0,67093.0,0.30342774]
[1721571178022,0.0164631,67094.0,67093.0,0.42721958]
[1721571178231,0.0164631,67094.0,67093.0,0.27817358]
[1721571179001,0.0364631,67094.0,67093.0,0.27817358]
[1721571179161,0.0364631,67094.0,67093.0,0.15438174]
[1721571179400,0.0453415,67094.0,67093.0,0.15438174]
[1721571180465,0.1452,67093.0,67077.0,0.10899094]
[1721571180712,0.07717479,67085.0,67084.0,0.15438174]
[1721571180948,0.07717479,67085.0,67084.0,0.27818013]
[1721571180949,0.09717479,67085.0,67084.0,0.27818013]
[1721571181188,0.09717479,67085.0,67084.0,0.12379839]
[1721571181189,0.16187479,67085.0,67084.0,0.12379839]
[1721571181660,0.0847,67085.0,67084.0,0.13617823]
[1721571182105,0.02,67085.0,67084.0,0.29055997]
[1721571182761,0.02,67085.0,67084.0,0.4396307]
[1721571183404,0.02,67085.0,67084.0,0.27818486]
[1721571185623,0.02,67085.0,67084.0,0.15438174]
[1721571185861,0.02,67085.0,67084.0,0.27818669]
[1721571187510,0.02,67085.0,67084.0,0.12380495]
[1721571187744,0.0288576,67085.0,67084.0,0.12380495]
[1721571187978,0.0288576,67085.0,67066.0,0.079024]
[1721571187979,0.1740576,67085.0,67067.0,0.05208758]
[1721571188214,0.1740576,67085.0,67066.0,0.079024]
[1721571188215,0.0647,67080.0,67068.0,0.27819941]
[1721571188434,0.002794,67079.0,67069.0,0.12381767]
[1721571188647,0.002794,67079.0,67068.0,0.15438174]
[1721571188648,0.022794,67079.0,67070.0,0.30611175]
[1721571188850,0.022794,67079.0,67071.0,0.12382354]
[1721571189061,0.022794,67079.0,67072.0,0.27820528]
[1721571189270,0.022794,67079.0,67073.0,0.12382339]
[1721571189487,0.023,67078.0,67074.0,0.12382339]
[1721571189698,0.002794,67077.0,67075.0,0.12382339]
[1721571189909,0.022794,67077.0,67076.0,0.12382339]
[1721571190120,0.043,67077.0,67076.0,0.12382339]
[1721571190343,0.043,67077.0,67067.0,0.15438174]
[1721571190532,0.002794,67076.0,67068.0,0.12382364]
[1721571190744,0.0805,67075.0,67069.0,0.15438174]
[1721571190951,0.002794,67074.0,67070.0,0.12382364]
[1721571191163,0.022794,67074.0,67070.0,0.27820538]
[1721571191372,0.00404042,67073.0,67066.0,0.000924]
[1721571191641,0.002794,67072.0,67067.0,0.27821402]
[1721571191802,0.022794,67072.0,67067.0,0.15438174]
[1721571192035,0.022794,67072.0,67068.0,0.12383452]
[1721571192237,0.07348882,67071.0,67069.0,0.12383452]
[1721571192447,0.09591193,67071.0,67067.0,0.15438174]
[1721571193075,0.09591193,67071.0,67066.0,0.000924]
[1721571193514,0.07717479,67067.0,67066.0,0.000924]
[1721571193724,0.17767479,67067.0,67066.0,0.000924]
[1721571194157,0.24532695,67067.0,67066.0,0.000924]
[1721571194365,0.20067479,67067.0,67066.0,0.000924]
[1721571194800,0.20538659,67067.0,67066.0,0.000924]
[1721571195015,0.25406545,67067.0,67066.0,0.000924]
[1721571195433,0.31835315,67067.0,67066.0,0.000924]
[1721571195868,0.27373146,67067.0,67066.0,0.000924]
[1721571196072,0.31835328,67067.0,67066.0,0.000924]
[1721571196286,0.53509904,67067.0,67066.0,0.000924]
[1721571196493,0.48976819,67067.0,67066.0,0.000924]
[1721571196751,0.42283546,67067.0,67066.0,0.000924]
[1721571196969,0.3629751,67067.0,67066.0,0.000924]
[1721571197201,0.3657691,67067.0,67066.0,0.000924]
[1721571197427,0.57309172,67067.0,67066.0,0.000924]
[1721571197641,0.47283546,67067.0,67066.0,0.000924]
[1721571198128,0.47562946,67067.0,67066.0,0.000924]
[1721571198360,0.27652546,67067.0,67066.0,0.000924]
[1721571198595,0.32652546,67067.0,67066.0,0.000924]
[1721571198832,0.8782202,67067.0,67066.0,0.000924]
[1721571199048,0.9254262,67067.0,67066.0,0.000924]
[1721571199486,0.96998167,67067.0,67066.0,0.000924]
[1721571200553,0.9254262,67067.0,67066.0,0.000924]
[1721571201274,1.0254262,67067.0,67066.0,0.000924]
[1721571201812,1.6718442,67067.0,67066.0,0.000924]
[1721571202187,1.76090036,67067.0,67066.0,0.000924]
[1721571202399,1.3736352,67067.0,67066.0,0.000924]
[1721571202616,1.14219291,67067.0,67066.0,0.000924]
[1721571202833,1.11993571,67067.0,67066.0,0.000924]
[1721571203058,1.06993571,67067.0,67066.0,0.000924]
[1721571203273,1.0254262,67067.0,67066.0,0.000924]
[1721571204114,1.0754262,67067.0,67066.0,0.000924]
[1721571204372,1.0782202,67067.0,67066.0,0.000924]
[1721571204754,1.22977577,67067.0,67066.0,0.000924]
[1721571204954,1.0754262,67067.0,67066.0,0.000924]
[1721571206198,1.09102955,67067.0,67066.0,0.000924]
[1721571206613,0.69282055,67067.0,67066.0,0.000924]
[1721571206843,0.54371655,67067.0,67066.0,0.000924]
[1721571207654,0.54375655,67067.0,67066.0,0.000924]
[1721571208071,0.74286055,67067.0,67066.0,0.000924]
[1721571208478,0.85313389,67067.0,67066.0,0.000924]
[1721571208682,0.74286055,67067.0,67066.0,0.000924]
[1721571209715,0.54375655,67067.0,67066.0,0.000924]
[1721571210753,0.46658176,67067.0,67066.0,0.000924]
[1721571213909,0.51658176,67067.0,67066.0,0.000924]
[1721571214117,0.46658176,67067.0,67066.0,0.000924]
[1721571215593,0.31220002,67067.0,67066.0,0.000924]
[1721571215998,0.23170002,67067.0,67066.0,0.000924]